bitfinex/quotes_BTCUSD_20251024
["timestamp","ask_amount","ask_price","bid_price","bid_amount"]
[1761316508425,0.18147173,110210.0,110200.0,0.21488925]
[1761316508665,0.18147173,110210.0,110200.0,0.05048925]
[1761316508897,0.18147173,110210.0,110200.0,0.39637745]
[1761316509315,0.52147173,110210.0,110200.0,0.21588925]
[1761316509526,0.52147173,110210.0,110200.0,0.39737745]
[1761316509745,0.34,110210.0,110200.0,0.39737745]
[1761316510007,0.52147173,110210.0,110200.0,0.40237745]
[1761316510903,0.52147173,110210.0,110200.0,0.22088925]
[1761316511087,0.52147173,110210.0,110200.0,0.40237745]
[1761316511851,0.34,110210.0,110200.0,0.40237745]
[1761316512063,0.52147173,110210.0,110200.0,0.40237745]
[1761316512266,0.52147173,110210.0,110200.0,0.05648925]
[1761316512479,0.18147173,110210.0,110200.0,0.22088925]
[1761316514669,0.52147173,110210.0,110200.0,0.05648925]
[1761316514887,0.52147173,110210.0,110200.0,0.22088925]
[1761316515065,0.52147173,110210.0,110200.0,0.05648925]
[1761316515261,0.52147173,110210.0,110200.0,0.22084925]
[1761316515516,0.52147173,110210.0,110200.0,0.05648925]
[1761316515660,0.52147173,110210.0,110200.0,0.22084925]
[1761316516062,0.52147173,110210.0,110200.0,0.40233745]
[1761316517405,0.52147173,110210.0,110200.0,0.22084925]
[1761316517681,0.52147173,110210.0,110200.0,0.05648925]
[1761316517915,0.52147173,110210.0,110200.0,0.22084925]
[1761316519170,0.61129074,110210.0,110200.0,0.05648925]
[1761316519406,0.61129074,110210.0,110200.0,0.22084925]
[1761316519639,0.34,110210.0,110200.0,0.22084925]
[1761316519893,0.52147173,110210.0,110200.0,0.22084925]
[1761316520146,0.52147173,110210.0,110200.0,0.40233745]
[1761316520374,0.52147173,110210.0,110200.0,0.22084925]
[1761316520579,0.52147173,110210.0,110200.0,0.40233745]
[1761316520794,0.18147173,110210.0,110200.0,0.40233745]
[1761316521007,0.52147173,110210.0,110200.0,0.22084925]
[1761316521224,0.52147173,110210.0,110200.0,0.40233745]
[1761316521465,0.52147173,110210.0,110200.0,0.22084925]
[1761316521677,0.52147173,110210.0,110200.0,0.40233745]
[1761316521891,0.52147173,110210.0,110200.0,0.22084925]
[1761316522111,0.34,110210.0,110200.0,0.40233745]
[1761316522326,0.52147173,110210.0,110200.0,0.40233745]
[1761316522979,0.34,110210.0,110200.0,0.40233745]
[1761316523203,0.52147173,110210.0,110200.0,0.40233745]
[1761316523410,0.34,110210.0,110200.0,0.40233745]
[1761316523612,0.52147173,110210.0,110200.0,0.40233745]
[1761316524286,0.34,110210.0,110200.0,0.40233745]
[1761316524499,0.34,110210.0,110200.0,0.40233375]
[1761316526114,0.34,110220.0,110210.0,0.181457]
[1761316526336,0.52145527,110220.0,110210.0,0.181457]
[1761316526575,0.34,110220.0,110210.0,0.181457]
[1761316527228,0.52145527,110220.0,110200.0,0.39633375]
[1761316527455,0.18147173,110210.0,110200.0,0.05048925]
[1761316527677,0.18147173,110210.0,110200.0,0.21480925]
[1761316528145,0.18147173,110210.0,110200.0,0.05048925]
[1761316528372,0.18147173,110210.0,110200.0,0.21476925]
[1761316528593,0.18147173,110210.0,110200.0,0.05148925]
[1761316529035,0.18147173,110210.0,110200.0,0.05548925]
[1761316529518,0.18147173,110210.0,110200.0,0.05148925]
[1761316529740,0.18147173,110210.0,110200.0,0.05648925]
[1761316529967,0.18147173,110210.0,110200.0,0.05548925]
[1761316530386,0.18147173,110210.0,110200.0,0.05648925]
[1761316531509,0.52145671,110220.0,110200.0,0.66195065]
[1761316531753,0.18145527,110220.0,110210.0,0.60594493]
[1761316531979,0.19950806,110230.0,110210.0,0.77022493]
[1761316532206,0.34,110220.0,110210.0,0.77022493]
[1761316532423,0.18145527,110220.0,110210.0,0.34625173]
[1761316532648,0.52145527,110220.0,110210.0,0.77022493]
[1761316532870,0.52145527,110220.0,110210.0,0.34625173]
[1761316533400,0.52145527,110220.0,110210.0,0.16478]
[1761316534070,0.52145527,110220.0,110210.0,0.34625173]
[1761316534512,0.34,110220.0,110210.0,0.34625173]
[1761316534742,0.52145527,110220.0,110210.0,0.34625173]
[1761316534957,0.52345527,110220.0,110210.0,0.34625173]
[1761316535614,0.342,110220.0,110210.0,0.34625173]
[1761316535833,0.52345527,110220.0,110210.0,0.34625173]
[1761316536277,0.342,110220.0,110210.0,0.34625173]
[1761316536495,0.52345527,110220.0,110210.0,0.34625173]
[1761316536942,0.52345527,110220.0,110210.0,0.16478]
[1761316537176,0.52345527,110220.0,110210.0,0.34625173]
[1761316537834,0.57643925,110220.0,110210.0,0.0005]
[1761316538056,0.52345527,110220.0,110210.0,0.0005]
[1761316538276,0.52345527,110220.0,110210.0,0.1647]
[1761316538493,0.55547692,110220.0,110210.0,0.1647]
[1761316539135,0.55547692,110220.0,110210.0,0.0005]
[1761316539352,0.55547692,110220.0,110210.0,0.1647]
[1761316541023,0.37402165,110220.0,110210.0,0.82794339]
[1761316541230,0.342,110220.0,110210.0,0.82794339]
[1761316541541,0.342,110220.0,110210.0,0.43599074]
[1761316541750,0.342,110220.0,110210.0,0.25451901]
[1761316541953,0.52345527,110220.0,110210.0,0.25451901]
[1761316542162,0.52345527,110220.0,110210.0,0.43599074]
[1761316543010,0.52345527,110220.0,110210.0,0.25451901]
[1761316543248,0.52345527,110220.0,110210.0,0.43599074]
[1761316543476,0.52345527,110220.0,110210.0,0.25451901]
[1761316543695,0.52345527,110220.0,110210.0,0.0005]
[1761316543898,0.52345527,110220.0,110210.0,0.16466]
[1761316545177,0.52345527,110220.0,110210.0,0.0005]
[1761316545388,0.52345527,110220.0,110210.0,0.16466]
[1761316545589,0.64529593,110220.0,110210.0,0.16466]
[1761316547726,0.80941593,110220.0,110210.0,0.0005]
[1761316547960,0.85269697,110220.0,110210.0,0.0005]
[1761316548190,0.18153762,110170.0,110150.0,0.03240815]
[1761316548485,0.18158707,110140.0,110130.0,0.05808]
[1761316548701,0.52158707,110140.0,110130.0,0.2222]
[1761316549148,0.52161983,110130.0,110110.0,0.19070833]
[1761316549373,0.18161983,110130.0,110110.0,0.05808]
[1761316549595,0.18161983,110130.0,110120.0,0.16412]
[1761316550497,0.18170846,110130.0,110120.0,0.16412]
[1761316551181,0.18270846,110130.0,110120.0,0.16412]
[1761316551614,0.19865704,110130.0,110120.0,0.16412]
[1761316552034,0.19965704,110130.0,110120.0,0.16412]
[1761316552941,0.18370846,110130.0,110120.0,0.17412]
[1761316553167,0.18370846,110130.0,110120.0,0.35574005]
[1761316553427,0.00208863,110130.0,110120.0,0.44555906]
[1761316553643,0.18369218,110130.0,110120.0,0.44555906]
[1761316554324,0.52369218,110130.0,110120.0,0.44555906]
[1761316555660,0.34208863,110130.0,110120.0,0.44555906]
[1761316556092,0.52369218,110130.0,110120.0,0.44555906]
[1761316556766,0.00208863,110130.0,110120.0,0.963513]
[1761316557221,0.00208863,110130.0,110120.0,0.48174134]
[1761316557655,0.00208863,110130.0,110120.0,0.963513]
[1761316558517,0.00208863,110130.0,110120.0,1.04267745]
[1761316558720,0.00208863,110130.0,110120.0,0.963513]
[1761316559352,8.863e-05,110130.0,110120.0,0.963513]
[1761316559883,8.863e-05,110130.0,110120.0,0.981513]
[1761316562063,8.863e-05,110130.0,110120.0,0.49974134]
[1761316562299,8.863e-05,110130.0,110120.0,1.05333554]
[1761316562527,8.863e-05,110130.0,110120.0,1.5351072]
[1761316562749,8.863e-05,110130.0,110120.0,1.05333554]
[1761316563686,8.863e-05,110130.0,110120.0,0.981513]
[1761316565547,8.863e-05,110130.0,110120.0,0.49974134]
[1761316565751,8.863e-05,110130.0,110120.0,0.981513]
[1761316565972,8.863e-05,110130.0,110120.0,0.64924134]
[1761316566234,8.863e-05,110130.0,110120.0,0.46351906]
[1761316566906,8.863e-05,110130.0,110120.0,0.981473]
[1761316567124,8.863e-05,110130.0,110120.0,0.49970134]
[1761316567356,8.863e-05,110130.0,110120.0,0.11781901]
[1761316567592,0.52169218,110130.0,110120.0,0.028]
[1761316567805,0.52169218,110130.0,110120.0,0.19204]
[1761316568241,0.52169218,110130.0,110120.0,0.37366005]
[1761316568461,0.52169218,110130.0,110120.0,0.36966005]
[1761316568680,0.52169218,110130.0,110120.0,0.35566005]
[1761316568681,0.52369218,110130.0,110120.0,0.35566005]
[1761316568925,0.34308863,110130.0,110120.0,0.35566005]
[1761316569145,0.34308863,110130.0,110120.0,0.44547906]
[1761316571217,0.52469218,110130.0,110120.0,0.44547906]
[1761316571652,0.34308863,110130.0,110120.0,0.44547906]
[1761316571871,0.52469218,110130.0,110120.0,0.44547906]
[1761316572537,0.52469218,110130.0,110120.0,0.17404]
[1761316572760,0.52469218,110130.0,110120.0,0.01]
[1761316572982,0.54400558,110130.0,110120.0,0.17404]
[1761316573162,0.52469218,110130.0,110120.0,0.17404]
[1761316573400,0.54401311,110130.0,110120.0,0.17404]
[1761316575239,0.54401311,110130.0,110120.0,0.01]
[1761316575426,0.63383212,110130.0,110120.0,0.01]
[1761316576115,0.66625454,110130.0,110120.0,0.01]
[1761316576329,0.80800681,110130.0,110120.0,0.01]
[1761316576761,0.89856081,110130.0,110120.0,0.01]
[1761316576980,0.83025454,110130.0,110120.0,0.01]
[1761316577196,0.82925454,110130.0,110120.0,0.01]
[1761316577406,0.83125454,110130.0,110120.0,0.01]
[1761316577832,0.83325454,110130.0,110120.0,0.01]
[1761316578311,0.83125454,110130.0,110120.0,0.01]
[1761316579172,0.83325454,110130.0,110120.0,0.01]
[1761316579405,0.66925454,110130.0,110120.0,0.01]
[1761316579614,0.74343553,110130.0,110120.0,0.01]
[1761316579837,0.57943553,110130.0,110120.0,0.01]
[1761316580055,0.54701311,110130.0,110120.0,0.01]
[1761316580283,0.20701311,110130.0,110120.0,0.01]
[1761316580502,0.02540956,110130.0,110120.0,0.19162005]
[1761316580740,0.20701311,110130.0,110120.0,0.174]
[1761316580961,0.54701311,110130.0,110120.0,0.35562005]
[1761316581183,0.02540956,110130.0,110120.0,0.35562005]
[1761316581427,0.01940956,110130.0,110120.0,0.35562005]
[1761316581682,0.02140956,110130.0,110120.0,0.35562005]
[1761316581893,0.00208863,110130.0,110120.0,0.53974134]
[1761316590086,0.00208863,110130.0,110120.0,0.50355906]
[1761316590300,0.00208863,110130.0,110120.0,0.01]
[1761316590301,0.52369218,110130.0,110120.0,0.01]
[1761316590514,0.54308118,110130.0,110120.0,0.17392]
[1761316590766,0.63290019,110130.0,110120.0,0.01]
[1761316590981,0.66532261,110130.0,110120.0,0.01]
[1761316591193,0.71395624,110130.0,110120.0,0.01]
[1761316591833,0.52163654,110110.0,110100.0,0.0002]
[1761316592036,0.79476455,110110.0,110100.0,0.0002]
[1761316592864,0.59620974,110110.0,110100.0,0.0002]
[1761316593073,0.77784628,110110.0,110100.0,0.0002]
[1761316593929,0.78184628,110110.0,110100.0,0.0002]
[1761316595326,0.78181697,110110.0,110100.0,0.0002]
[1761316596582,0.61789697,110110.0,110100.0,0.0002]
[1761316600170,0.52807796,110110.0,110100.0,0.0002]
[1761316601221,0.61789697,110110.0,110100.0,0.0002]
[1761316602164,0.65020004,110110.0,110100.0,0.0002]
[1761316602783,0.52166954,110090.0,110080.0,0.16410097]
[1761316603024,0.54102923,110090.0,110080.0,0.16410097]
[1761316603249,0.35935969,110090.0,110080.0,0.22097781]
[1761316603478,0.54102923,110090.0,110080.0,0.22097781]
[1761316603719,0.35935969,110090.0,110080.0,0.22097781]
[1761316603952,0.35935969,110090.0,110080.0,0.22146794]
[1761316604169,0.54302923,110090.0,110080.0,0.22146794]
[1761316604381,0.36135969,110090.0,110080.0,0.22146794]
[1761316605273,0.342,110090.0,110080.0,0.22146794]
[1761316605708,0.52366954,110090.0,110080.0,0.22146794]
[1761316605934,0.342,110090.0,110080.0,0.1645911]
[1761316607036,0.342,110090.0,110080.0,0.25441011]
[1761316607267,0.002,110090.0,110080.0,0.25441011]
[1761316607707,0.002,110090.0,110080.0,1.00158033]
[1761316607919,0.002,110090.0,110080.0,0.25441011]
[1761316608126,0.002,110090.0,110080.0,0.32031786]
[1761316608602,0.002,110090.0,110080.0,1.10367036]
[1761316609631,0.001,110090.0,110080.0,1.10367036]
[1761316609868,0.22298752,110130.0,110110.0,0.18162111]
[1761316610105,0.24230354,110130.0,110120.0,0.34546005]
[1761316610345,0.21000047,110130.0,110120.0,0.34546005]
[1761316610564,0.55000047,110130.0,110120.0,0.16384]
[1761316610760,0.55000047,110130.0,110120.0,0.34546005]
[1761316611179,0.55000047,110130.0,110120.0,0.34560686]
[1761316611839,0.55000047,110130.0,110120.0,0.16398681]
[1761316612662,0.55000047,110130.0,110120.0,0.34560686]
[1761316612865,0.54191957,110130.0,110120.0,0.34560686]
[1761316613097,0.63173858,110130.0,110120.0,0.00014681]
[1761316613324,0.66404165,110130.0,110120.0,0.16394681]
[1761316614087,0.71267528,110130.0,110120.0,0.00014681]
[1761316614289,0.68037221,110130.0,110120.0,0.00014681]
[1761316615115,0.63073858,110130.0,110120.0,0.00014681]
[1761316615316,0.69678188,110130.0,110120.0,0.00014681]
[1761316616394,0.69978188,110130.0,110120.0,0.00014681]
[1761316617762,0.70978187,110130.0,110120.0,0.00014681]
[1761316618294,0.18166954,110090.0,110080.0,0.39375749]
[1761316618538,0.20098556,110090.0,110080.0,0.39424762]
[1761316619534,0.20098556,110090.0,110080.0,0.39524762]
[1761316619944,0.20098556,110090.0,110080.0,0.40324762]
[1761316620144,0.01931602,110090.0,110080.0,0.49306663]
[1761316620358,0.52165345,110100.0,110080.0,0.49306663]
[1761316620559,0.18166954,110090.0,110080.0,0.48398292]
[1761316620811,0.20104674,110090.0,110080.0,0.48398292]
[1761316621012,0.20104674,110090.0,110080.0,0.35690292]
[1761316621239,0.20104674,110090.0,110080.0,0.25908392]
[1761316621481,0.54104674,110090.0,110080.0,0.01149013]
[1761316621851,0.66311484,110090.0,110080.0,0.01149013]
[1761316622052,0.87524847,110090.0,110080.0,0.01149013]
[1761316622472,2.18168604,110080.0,110040.0,0.025]
[1761316622670,2.18168604,110080.0,109990.0,0.0748163]
[1761316622671,0.00999999,110010.0,109980.0,0.08656585]
[1761316622847,0.56783868,109990.0,109980.0,0.02438678]
[1761316623053,0.18183471,109990.0,109980.0,0.02438678]
[1761316623251,0.52183471,109990.0,109980.0,0.02438678]
[1761316623477,0.52183471,109990.0,109980.0,0.08250678]
[1761316623885,0.34,109990.0,109980.0,0.08250678]
[1761316624087,0.52183471,109990.0,109980.0,0.09050678]
[1761316624290,0.52183471,109990.0,109980.0,0.08250678]
[1761316624660,0.52383471,109990.0,109980.0,0.22302678]
[1761316625296,0.52383471,109990.0,109980.0,0.23302678]
[1761316625715,0.342,109990.0,109980.0,0.41505632]
[1761316626123,0.344,109990.0,109980.0,0.41505632]
[1761316626526,0.52583471,109990.0,109980.0,0.23320508]
[1761316626737,0.52583471,109990.0,109980.0,0.06864508]
[1761316626977,0.52583471,109990.0,109980.0,0.23332508]
[1761316627618,0.344,109990.0,109980.0,0.41517632]
[1761316627822,0.52583471,109990.0,109980.0,0.23332508]
[1761316628040,0.52583471,109990.0,109980.0,0.23336508]
[1761316628907,0.52583471,109990.0,109980.0,0.41521632]
[1761316629873,0.344,109990.0,109980.0,0.41521632]
[1761316630285,0.52583471,109990.0,109980.0,0.23328508]
[1761316630511,0.52583471,109990.0,109980.0,0.06846678]
[1761316630727,0.52583471,109990.0,109980.0,0.23306678]
[1761316631297,0.52583471,109990.0,109980.0,0.41491802]
[1761316631724,0.52583471,109990.0,109980.0,0.23306678]
[1761316631891,0.52583471,109990.0,109980.0,0.06846678]
[1761316632095,0.52583471,109990.0,109980.0,0.23302678]
[1761316633289,0.52583471,109990.0,109980.0,0.06846678]
[1761316633498,0.52583471,109990.0,109980.0,0.23474897]
[1761316633913,0.52583471,109990.0,109980.0,0.07018897]
[1761316634154,0.344,109990.0,109980.0,0.41652021]
[1761316634373,0.52583471,109990.0,109980.0,0.41652021]
[1761316634578,0.52583471,109990.0,109980.0,0.23466897]
[1761316636100,0.52583471,109990.0,109980.0,0.07018897]
[1761316636321,0.52583471,109990.0,109980.0,0.23466897]
[1761316636772,0.54250916,109990.0,109980.0,0.23466897]
[1761316637415,0.54250916,109990.0,109980.0,0.23454897]
[1761316639227,0.54250916,109990.0,109980.0,0.07018897]
[1761316639460,0.52185124,109980.0,109970.0,0.0002]
[1761316639690,0.6283447,109980.0,109970.0,0.00034694]
[1761316639884,0.64755634,109980.0,109970.0,0.00034694]
[1761316640173,0.64755634,109980.0,109970.0,0.00069149]
[1761316640405,0.64755634,109980.0,109970.0,0.12573149]
[1761316640674,2.53143838,109960.0,109950.0,1e-08]
[1761316640897,0.69359339,109960.0,109950.0,1e-08]
[1761316641357,0.34006752,109920.0,109910.0,0.0001783]
[1761316641599,6.752e-05,109920.0,109910.0,0.45502805]
[1761316641848,6.752e-05,109920.0,109910.0,0.56283264]
[1761316642327,6.752e-05,109920.0,109910.0,0.47301363]
[1761316642569,0.18201802,109920.0,109910.0,0.13432657]
[1761316642801,0.18201802,109920.0,109910.0,0.50307135]
[1761316643277,0.18201802,109920.0,109910.0,0.26282429]
[1761316643539,0.21786173,109920.0,109910.0,0.32102429]
[1761316643770,0.21786173,109920.0,109910.0,0.28011135]
[1761316644010,0.21786173,109920.0,109910.0,0.50299135]
[1761316644232,0.20120698,109920.0,109910.0,0.50299135]
[1761316644475,0.20120698,109920.0,109910.0,0.16634429]
[1761316644699,0.20120698,109920.0,109910.0,0.01814698]
[1761316644922,0.32331451,109920.0,109910.0,0.01814698]
[1761316645148,0.3883289,109920.0,109910.0,0.01814698]
[1761316645371,0.32331451,109920.0,109910.0,0.13762698]
[1761316645612,0.38831346,109920.0,109910.0,0.13762698]
[1761316645841,0.2334955,109920.0,109910.0,0.13762698]
[1761316646069,0.2354955,109920.0,109910.0,0.12962698]
[1761316646299,0.2354955,109920.0,109910.0,0.17486698]
[1761316646300,0.2374955,109920.0,109910.0,0.17486698]
[1761316646574,0.2374955,109920.0,109910.0,0.23306698]
[1761316646796,0.2374955,109920.0,109910.0,0.23513551]
[1761316647021,0.4274955,109920.0,109910.0,0.23513551]
[1761316647238,0.74894033,109920.0,109910.0,0.17701551]
[1761316647441,0.78122885,109920.0,109910.0,0.17701551]
[1761316648386,0.78122885,109920.0,109910.0,0.01221551]
[1761316648609,0.78122885,109920.0,109910.0,0.17701551]
[1761316649074,0.78122885,109920.0,109910.0,0.17693551]
[1761316649075,0.87104786,109920.0,109910.0,0.17693551]
[1761316649315,0.78122885,109920.0,109910.0,0.17693551]
[1761316649535,0.74894033,109920.0,109910.0,0.17693551]
[1761316650155,0.82960248,109920.0,109910.0,0.17693551]
[1761316650611,0.5774955,109920.0,109910.0,0.17693551]
[1761316651052,0.02325648,109920.0,109910.0,0.47243126]
[1761316651274,0.02325648,109920.0,109910.0,0.26693282]
[1761316651275,0.20520698,109920.0,109910.0,0.26693282]
[1761316651487,0.20520698,109920.0,109910.0,0.44889988]
[1761316651488,0.02325648,109920.0,109910.0,0.44889988]
[1761316651929,0.20520698,109920.0,109910.0,0.44889988]
[1761316652578,0.02325648,109920.0,109910.0,0.44889988]
[1761316652998,0.37228852,109930.0,109910.0,0.44889988]
[1761316653205,0.1819505,109920.0,109910.0,0.44683135]
[1761316653420,0.55422423,109930.0,109920.0,0.1819505]
[1761316653639,0.55422423,109930.0,109910.0,0.1697557]
[1761316653845,0.1819505,109920.0,109910.0,0.01014698]
[1761316654052,0.1819505,109920.0,109910.0,0.17490698]
[1761316654307,0.1819505,109920.0,109910.0,0.01014698]
[1761316654512,0.1819505,109920.0,109910.0,0.17490698]
[1761316655001,0.1819505,109920.0,109910.0,0.17494698]
[1761316655418,0.1839505,109920.0,109910.0,0.17494698]
[1761316655572,0.1859505,109920.0,109910.0,0.17494698]
[1761316655779,0.27576951,109920.0,109910.0,0.01014698]
[1761316656079,0.30805803,109920.0,109910.0,0.01014698]
[1761316656276,2.90715563,109920.0,109910.0,1e-08]
[1761316656477,2.8848671,109920.0,109910.0,1e-08]
[1761316657361,0.52200018,109890.0,109880.0,0.03028]
[1761316657581,0.61181919,109890.0,109880.0,0.03042682]
[1761316657784,0.61181919,109890.0,109880.0,0.16498682]
[1761316658069,0.80181919,109890.0,109880.0,0.16498682]
[1761316658710,0.80381919,109890.0,109880.0,0.16498682]
[1761316658932,0.80381919,109890.0,109880.0,0.00014682]
[1761316659130,0.80581919,109890.0,109880.0,0.16809046]
[1761316659556,0.80581919,109890.0,109880.0,0.17809046]
[1761316659808,0.80581919,109890.0,109880.0,0.01325046]
[1761316660048,0.80581919,109890.0,109880.0,0.17809046]
[1761316660269,0.80581919,109890.0,109880.0,0.01325046]
[1761316661620,0.81564088,109890.0,109880.0,0.01325046]
[1761316661876,0.84748424,109890.0,109880.0,0.01325046]
[1761316662340,0.88366652,109890.0,109880.0,0.01]
[1761316662560,2.93204015,109890.0,109880.0,1e-08]
[1761316662782,2.94204014,109890.0,109880.0,1e-08]
[1761316662992,2.91019678,109890.0,109880.0,1e-08]
[1761316663701,2.90019679,109890.0,109880.0,1e-08]
[1761316663925,2.92586645,109890.0,109880.0,1e-08]
[1761316664374,0.56802071,109880.0,109870.0,8e-05]
[1761316664591,0.87036774,109880.0,109870.0,0.00022642]
[1761316665020,0.88948142,109880.0,109870.0,0.00022642]
[1761316665243,0.84347745,109880.0,109870.0,0.00022642]
[1761316665463,0.67871745,109880.0,109870.0,0.00022642]
[1761316665939,0.71358844,109880.0,109870.0,0.00022642]
[1761316666166,0.66582042,109880.0,109870.0,0.00022642]
[1761316666385,0.71658844,109880.0,109870.0,0.00022642]
[1761316667290,0.68471745,109880.0,109870.0,0.00022642]
[1761316669201,0.63694943,109880.0,109870.0,0.00022642]
[1761316669824,0.68490054,109880.0,109870.0,0.00022642]
[1761316670030,0.68490054,109880.0,109870.0,0.00057144]
[1761316670285,0.63694943,109880.0,109870.0,0.00057144]
[1761316671217,0.27117372,109880.0,109870.0,0.18260475]
[1761316671417,0.25515816,109880.0,109870.0,0.017514]
[1761316671634,0.07314142,109880.0,109870.0,0.25796561]
[1761316671854,0.05713384,109880.0,109870.0,0.25796561]
[1761316672079,0.05413384,109880.0,109870.0,0.25796561]
[1761316672293,0.05413384,109880.0,109870.0,0.34778462]
[1761316672504,0.05613384,109880.0,109870.0,0.34778462]
[1761316672709,0.05613384,109880.0,109870.0,0.47378591]
[1761316672915,0.01911368,109880.0,109870.0,0.95774607]
[1761316673368,0.01911368,109880.0,109870.0,0.63858591]
[1761316673574,0.01911368,109880.0,109870.0,0.41554591]
[1761316673778,0.01911368,109880.0,109870.0,1.12258607]
[1761316674193,0.02011368,109880.0,109870.0,0.63862591]
[1761316674404,0.02011368,109880.0,109870.0,1.12258607]
[1761316674841,0.03202016,109890.0,109880.0,0.18219504]
[1761316675055,0.0800479,109900.0,109890.0,0.18200018]
[1761316675293,0.0800479,109900.0,109890.0,0.45364175]
[1761316675713,0.0800479,109900.0,109890.0,0.97396249]
[1761316675949,0.04802774,109920.0,109910.0,0.18214536]
[1761316676171,0.04802774,109920.0,109910.0,0.75212197]
[1761316676393,0.04802774,109920.0,109910.0,0.34692197]
[1761316676602,0.04802774,109920.0,109910.0,0.57012197]
[1761316676826,0.04802774,109920.0,109910.0,0.57016197]
[1761316677048,0.18193618,109930.0,109920.0,0.0001783]
[1761316677312,0.18193618,109930.0,109920.0,0.01712086]
[1761316677523,0.18193618,109930.0,109920.0,0.01715001]
[1761316677736,0.18193618,109930.0,109920.0,0.19910051]
[1761316677949,0.18193618,109930.0,109920.0,0.0001783]
[1761316678171,0.18193618,109930.0,109920.0,0.2234183]
[1761316678386,0.18193618,109930.0,109920.0,0.27295333]
[1761316678622,0.18193618,109930.0,109920.0,0.27395333]
[1761316678824,0.18193618,109930.0,109920.0,0.0011783]
[1761316679044,0.18193618,109930.0,109920.0,0.2243783]
[1761316680337,0.18193618,109930.0,109920.0,0.2323783]
[1761316680559,0.18193618,109930.0,109920.0,0.009]
[1761316680775,0.61175519,109930.0,109920.0,0.009]
[1761316680994,0.84978293,109930.0,109920.0,0.009]
[1761316681233,0.00909835,109910.0,109870.0,0.00042502]
[1761316681460,0.52201674,109880.0,109870.0,0.00042502]
[1761316681671,0.61183575,109880.0,109870.0,0.00042502]
[1761316681891,0.61183575,109880.0,109870.0,0.02234502]
[1761316682565,0.61183575,109880.0,109870.0,0.13454502]
[1761316682828,2.83385801,109880.0,109870.0,1e-08]
[1761316683258,2.83735971,109880.0,109870.0,1e-08]
[1761316683477,0.8473597,109880.0,109870.0,1e-08]
[1761316683692,0.67151971,109880.0,109870.0,1e-08]
[1761316683904,0.6835197,109880.0,109870.0,1e-08]
[1761316684338,2.64733742,109880.0,109870.0,1e-08]
[1761316684549,0.27183575,109880.0,109870.0,1e-08]
[1761316684753,0.18501674,109880.0,109870.0,1e-08]
[1761316684943,0.19001674,109880.0,109870.0,0.00100001]
[1761316685186,0.53001674,109880.0,109870.0,0.00100001]
[1761316685612,0.19001674,109880.0,109870.0,0.00100001]
[1761316685818,0.53001674,109880.0,109870.0,0.00100001]
[1761316686209,0.53001674,109880.0,109870.0,0.22536001]
[1761316686448,0.61983575,109880.0,109870.0,0.00100001]
[1761316686682,0.61983575,109880.0,109870.0,0.16712001]
[1761316686885,0.63907475,109880.0,109870.0,0.00100001]
[1761316687091,0.63607475,109880.0,109870.0,0.00100001]
[1761316687300,0.63307475,109880.0,109870.0,0.05332001]
[1761316687509,0.63307475,109880.0,109870.0,1e-08]
[1761316687726,0.64707475,109880.0,109870.0,0.00100001]
[1761316689057,0.64707475,109880.0,109870.0,1e-08]
[1761316689272,0.64707475,109880.0,109810.0,0.20945265]
[1761316689273,0.34,109820.0,109810.0,0.20945265]
[1761316689484,0.34,109820.0,109810.0,0.28105839]
[1761316689691,0.34,109820.0,109810.0,0.50602638]
[1761316689911,0.34,109820.0,109810.0,0.18469211]
[1761316690114,0.34,109820.0,109810.0,0.40917211]
[1761316690742,0.341,109820.0,109810.0,0.48923493]
[1761316691160,0.341,109820.0,109810.0,0.55991622]
[1761316691355,0.341,109820.0,109810.0,0.61819622]
[1761316691356,0.001,109820.0,109810.0,0.61819622]
[1761316691579,0.341,109820.0,109810.0,0.61819622]
[1761316691793,0.341,109820.0,109810.0,0.5581334]
[1761316692791,0.001,109820.0,109810.0,0.5581334]
[1761316692996,0.001,109820.0,109810.0,1.04209356]
[1761316693996,0.001,109820.0,109810.0,1.16597356]
[1761316694224,0.001,109820.0,109810.0,1.31407257]
[1761316695108,0.191,109820.0,109810.0,1.31407257]
[1761316695302,0.001,109820.0,109810.0,1.31407257]
[1761316695683,0.001,109820.0,109810.0,1.46357257]
[1761316695863,0.001,109820.0,109810.0,1.05697257]
[1761316696073,1e-08,109820.0,109810.0,1.57305256]
[1761316696277,1e-08,109820.0,109810.0,1.81345256]
[1761316696873,0.32000001,109870.0,109860.0,0.18204988]
[1761316697085,0.50203332,109870.0,109860.0,0.44639826]
[1761316697891,0.32000001,109870.0,109860.0,0.40636988]
[1761316698099,0.50203332,109870.0,109860.0,0.40651712]
[1761316698304,0.51503332,109870.0,109860.0,0.40751712]
[1761316698511,0.51703332,109870.0,109860.0,0.40751712]
[1761316698742,0.33500001,109870.0,109860.0,0.18319712]
[1761316698948,0.33500001,109870.0,109860.0,0.57362151]
[1761316700043,0.52500001,109870.0,109860.0,0.34934151]
[1761316700249,0.52500001,109870.0,109860.0,0.57358151]
[1761316700470,0.70703332,109870.0,109860.0,0.18319712]
[1761316700888,0.52500001,109870.0,109860.0,0.40735712]
[1761316701095,0.205,109870.0,109860.0,0.49717613]
[1761316701537,0.205,109870.0,109860.0,0.53335841]
[1761316701826,0.205,109870.0,109860.0,0.62317742]
[1761316702072,0.205,109870.0,109860.0,1.37355829]
[1761316702333,0.205,109870.0,109860.0,1.38729339]
[1761316702542,0.205,109870.0,109860.0,1.38763846]
[1761316702781,0.19114181,109920.0,109900.0,0.18198362]
[1761316702988,0.19114181,109920.0,109910.0,0.40632706]
[1761316703205,0.19114181,109920.0,109910.0,0.22436]
[1761316703413,0.18196706,109910.0,109900.0,0.04001513]
[1761316703625,0.18196706,109910.0,109900.0,0.22436]
[1761316703846,0.19114181,109920.0,109900.0,0.40634362]
[1761316704056,0.19114181,109920.0,109910.0,0.18196706]
[1761316704057,0.03606102,109920.0,109910.0,0.18196706]
[1761316704266,0.00214639,109920.0,109910.0,0.18196706]
[1761316704649,0.52209689,109920.0,109910.0,0.18196706]
[1761316704878,0.34014639,109920.0,109910.0,0.18196706]
[1761316705081,0.52409689,109920.0,109910.0,0.18196706]
[1761316705323,0.35414639,109920.0,109910.0,0.25566346]
[1761316705520,0.53609689,109920.0,109910.0,0.25566346]
[1761316705722,0.53609689,109920.0,109910.0,0.34788706]
[1761316705924,0.53609689,109920.0,109910.0,0.40612706]
[1761316706435,0.53409689,109920.0,109910.0,0.40612706]
[1761316706611,0.53609689,109920.0,109910.0,0.40612706]
[1761316707016,0.01414639,109920.0,109910.0,0.43196787]
[1761316707238,0.01414639,109920.0,109910.0,0.68162835]
[1761316707371,0.01414639,109920.0,109910.0,0.62330835]
[1761316707569,0.01414639,109920.0,109910.0,0.68154835]
[1761316707766,0.01414639,109920.0,109910.0,0.45746835]
[1761316707983,0.01414639,109920.0,109910.0,0.68154835]